[Event "Early-Titled-Tuesday-Blitz-March-26-2024"]
[Site "Chess.com"]
[Date "2024.03.26"]
[Round "3"]
[White "sansanathalia"]
[Black "kritipatel"]
[Result "0-1"]
[WhiteElo "2401"]
[BlackElo "2202"]
[TimeControl "180+1"]
[EndTime "8:29:14 PDT"]
[Termination "kritipatel won by resignation"]

1. e4 {[%clk 0:02:17.7]} 1... e5 {[%clk 0:02:59.2]} 2. Nf3 {[%clk 0:02:12.3]}
2... Nc6 {[%clk 0:02:59.6]} 3. d4 {[%clk 0:02:09.2]} 3... exd4 {[%clk
0:02:56.4]} 4. Nxd4 {[%clk 0:02:07.4]} 4... Bb4+ {[%clk 0:02:55]} 5. Nc3 {[%clk
0:02:03.2]} 5... Nf6 {[%clk 0:02:53.4]} 6. Nxc6 {[%clk 0:02:02.8]} 6... bxc6
{[%clk 0:02:53.6]} 7. Bd3 {[%clk 0:02:03.1]} 7... O-O {[%clk 0:02:53.5]} 8. O-O
{[%clk 0:02:03.4]} 8... d5 {[%clk 0:02:53.9]} 9. exd5 {[%clk 0:01:59.5]} 9...
cxd5 {[%clk 0:02:53.9]} 10. Bg5 {[%clk 0:01:59.3]} 10... Bb7 {[%clk 0:02:40.5]}
11. Qf3 {[%clk 0:01:34.5]} 11... Be7 {[%clk 0:02:29.9]} 12. Rae1 {[%clk
0:01:30.8]} 12... Rb8 {[%clk 0:02:25.3]} 13. Qf5 {[%clk 0:01:26.4]} 13... g6
{[%clk 0:02:20.4]} 14. Qe5 {[%clk 0:01:21.9]} 14... Re8 {[%clk 0:01:58]} 15. Qg3
{[%clk 0:01:21.7]} 15... Nh5 {[%clk 0:01:45.7]} 16. Bxe7 {[%clk 0:01:21.3]}
16... Rxe7 {[%clk 0:01:46.1]} 17. Qg5 {[%clk 0:01:12.3]} 17... Rxe1 {[%clk
0:01:32.4]} 18. Qxd8+ {[%clk 0:01:11.6]} 18... Rxd8 {[%clk 0:01:33.3]} 19. Rxe1
{[%clk 0:01:10.5]} 19... Nf4 {[%clk 0:01:32.7]} 20. Bf1 {[%clk 0:01:10]} 20...
d4 {[%clk 0:01:29.9]} 21. Nb5 {[%clk 0:01:09.2]} 21... Rd5 {[%clk 0:01:22.8]}
22. g3 {[%clk 0:01:04.4]} 22... Nh3+ {[%clk 0:01:07.8]} 23. Bxh3 {[%clk
0:01:02.8]} 23... Rxb5 {[%clk 0:01:08.3]} 24. b3 {[%clk 0:01:03.2]} 24... Rc5
{[%clk 0:01:00]} 25. Re2 {[%clk 0:01:02.9]} 25... Bf3 {[%clk 0:00:52.9]} 26. Rd2
{[%clk 0:00:58.4]} 26... Rd5 {[%clk 0:00:51.9]} 27. Bf1 {[%clk 0:00:56.9]} 27...
c5 {[%clk 0:00:51.2]} 28. Rd3 {[%clk 0:00:53.9]} 28... Be4 {[%clk 0:00:48.1]}
29. Rd2 {[%clk 0:00:53.4]} 29... Bf3 {[%clk 0:00:47.2]} 30. Bg2 {[%clk
0:00:51.9]} 30... Bxg2 {[%clk 0:00:42.2]} 31. Kxg2 {[%clk 0:00:52.8]} 31... Kg7
{[%clk 0:00:42.1]} 32. Kf3 {[%clk 0:00:50.9]} 32... f5 {[%clk 0:00:39.2]} 33. c3
{[%clk 0:00:45.2]} 33... Kf6 {[%clk 0:00:25.9]} 34. cxd4 {[%clk 0:00:44.5]}
34... cxd4 {[%clk 0:00:24.1]} 35. Ke2 {[%clk 0:00:43.7]} 35... Ke5 {[%clk
0:00:21.7]} 36. Kd3 {[%clk 0:00:43.4]} 36... Rc5 {[%clk 0:00:19.9]} 37. Re2+
{[%clk 0:00:40.9]} 37... Kd5 {[%clk 0:00:18.7]} 38. Re8 {[%clk 0:00:40.1]} 38...
Rc3+ {[%clk 0:00:18.6]} 39. Kd2 {[%clk 0:00:39.5]} 39... Rf3 {[%clk 0:00:18.7]}
40. Rd8+ {[%clk 0:00:36.5]} 40... Ke4 {[%clk 0:00:17]} 41. Ke2 {[%clk 0:00:35]}
41... d3+ {[%clk 0:00:15.6]} 42. Ke1 {[%clk 0:00:34.6]} 42... f4 {[%clk
0:00:14.2]} 43. Re8+ {[%clk 0:00:25.1]} 43... Kd4 {[%clk 0:00:14]} 44. Rc8
{[%clk 0:00:19.3]} 44... fxg3 {[%clk 0:00:13.6]} 45. hxg3 {[%clk 0:00:19.1]}
45... g5 {[%clk 0:00:13.2]} 46. Rc4+ {[%clk 0:00:18.2]} 46... Kd5 {[%clk
0:00:12.4]} 47. Rg4 {[%clk 0:00:18.4]} 47... h6 {[%clk 0:00:11.9]} 48. Rc4
{[%clk 0:00:18.3]} 48... a5 {[%clk 0:00:12.1]} 49. Kf1 {[%clk 0:00:17.5]} 49...
h5 {[%clk 0:00:12.4]} 50. Rc8 {[%clk 0:00:15.7]} 50... Kd4 {[%clk 0:00:11.3]}
51. Kg2 {[%clk 0:00:15.7]} 51... g4 {[%clk 0:00:10.3]} 52. Kf1 {[%clk
0:00:16.1]} 52... h4 {[%clk 0:00:10]} 53. gxh4 {[%clk 0:00:15.9]} 53... Rh3
{[%clk 0:00:10.5]} 54. Kg2 {[%clk 0:00:13.8]} 54... d2 {[%clk 0:00:09.8]} 55.
Rd8+ {[%clk 0:00:12.9]} 55... Kc3 {[%clk 0:00:10.4]} 56. h5 {[%clk 0:00:12.4]}
56... Rd3 {[%clk 0:00:11]} 57. Rc8+ {[%clk 0:00:12.1]} 57... Kb2 {[%clk
0:00:11.1]} 58. h6 {[%clk 0:00:12.7]} 58... d1=Q {[%clk 0:00:10.9]} 59. h7
{[%clk 0:00:12.2]} 59... Qf3+ {[%clk 0:00:11.5]} 60. Kg1 {[%clk 0:00:10.6]}
60... Rd1+ {[%clk 0:00:11.3]} 0-1

[Event "Early-Titled-Tuesday-Blitz-March-26-2024"]
[Site "Chess.com"]
[Date "2024.03.26"]
[Round "3"]
[White "GMG"]
[Black "SpeedofLight0"]
[Result "0-1"]
[WhiteElo "2798"]
[BlackElo "3082"]
[TimeControl "180+1"]
[EndTime "8:29:15 PDT"]
[Termination "SpeedofLight0 won on time"]

1. Nf3 {[%clk 0:02:58]} 1... d6 {[%clk 0:02:59]} 2. d4 {[%clk 0:02:57.7]} 2...
g6 {[%clk 0:02:58.7]} 3. e4 {[%clk 0:02:57.8]} 3... Bg7 {[%clk 0:02:58.8]} 4.
Bc4 {[%clk 0:02:58.4]} 4... Nc6 {[%clk 0:02:58.1]} 5. h3 {[%clk 0:02:50.2]} 5...
Nf6 {[%clk 0:02:54.7]} 6. Qe2 {[%clk 0:02:48.9]} 6... O-O {[%clk 0:02:54]} 7. e5
{[%clk 0:02:47.3]} 7... dxe5 {[%clk 0:02:48.3]} 8. dxe5 {[%clk 0:02:48.2]} 8...
Nd5 {[%clk 0:02:49.1]} 9. O-O {[%clk 0:02:45.1]} 9... Nb6 {[%clk 0:02:47.1]} 10.
Rd1 {[%clk 0:02:37.1]} 10... Qe8 {[%clk 0:02:46.3]} 11. Bd3 {[%clk 0:02:32.3]}
11... Nb4 {[%clk 0:02:33.7]} 12. Be4 {[%clk 0:02:31.5]} 12... Be6 {[%clk
0:02:33.7]} 13. Nc3 {[%clk 0:02:26.4]} 13... Nc6 {[%clk 0:02:27.4]} 14. Bf4
{[%clk 0:02:22.9]} 14... Nc4 {[%clk 0:02:24.7]} 15. Nd5 {[%clk 0:02:16.9]} 15...
Bxd5 {[%clk 0:02:20.7]} 16. Bxd5 {[%clk 0:02:08.3]} 16... Nxb2 {[%clk
0:02:20.1]} 17. Rdb1 {[%clk 0:02:06.7]} 17... Na4 {[%clk 0:02:17.8]} 18. Rxb7
{[%clk 0:02:05.1]} 18... Nc3 {[%clk 0:02:11.9]} 19. Qc4 {[%clk 0:02:00.5]} 19...
Nxd5 {[%clk 0:02:05.1]} 20. Qxd5 {[%clk 0:02:01.4]} 20... Nd8 {[%clk 0:01:53.6]}
21. Rxc7 {[%clk 0:01:59.1]} 21... Ne6 {[%clk 0:01:53.8]} 22. Rc4 {[%clk
0:01:57.7]} 22... Rc8 {[%clk 0:01:52.4]} 23. Be3 {[%clk 0:01:56.6]} 23... Rxc4
{[%clk 0:01:38.6]} 24. Qxc4 {[%clk 0:01:57.5]} 24... Qd7 {[%clk 0:01:39.5]} 25.
Rb1 {[%clk 0:01:38.7]} 25... Rc8 {[%clk 0:01:39.1]} 26. Qd3 {[%clk 0:01:36.5]}
26... Qa4 {[%clk 0:01:36]} 27. Rb7 {[%clk 0:01:25.8]} 27... Qxa2 {[%clk
0:01:35.6]} 28. Rxa7 {[%clk 0:01:19.1]} 28... Qb1+ {[%clk 0:01:34.5]} 29. Kh2
{[%clk 0:01:19.4]} 29... Bf8 {[%clk 0:01:17.8]} 30. Ng5 {[%clk 0:01:03]} 30...
Nxg5 {[%clk 0:01:09.7]} 31. Bxg5 {[%clk 0:01:03.9]} 31... Qb8 {[%clk 0:00:46.9]}
32. Ra5 {[%clk 0:00:57.9]} 32... Qc7 {[%clk 0:00:45.8]} 33. Rd5 {[%clk
0:00:27.4]} 33... Qxc2 {[%clk 0:00:45.1]} 34. Qxc2 {[%clk 0:00:25.6]} 34... Rxc2
{[%clk 0:00:45.9]} 35. f4 {[%clk 0:00:24]} 35... h6 {[%clk 0:00:44]} 36. Bh4
{[%clk 0:00:23.7]} 36... Rc4 {[%clk 0:00:43.8]} 37. Kg3 {[%clk 0:00:20.5]} 37...
Kg7 {[%clk 0:00:37.1]} 38. Rd7 {[%clk 0:00:20]} 38... Rc3+ {[%clk 0:00:29]} 39.
Kf2 {[%clk 0:00:18.3]} 39... Rc2+ {[%clk 0:00:27.9]} 40. Kf3 {[%clk 0:00:17.9]}
40... Rc3+ {[%clk 0:00:27.4]} 41. Kf2 {[%clk 0:00:17.3]} 41... Rc4 {[%clk
0:00:27.2]} 42. Kf3 {[%clk 0:00:17]} 42... g5 {[%clk 0:00:26.8]} 43. Bg3 {[%clk
0:00:17.2]} 43... Rc3+ {[%clk 0:00:22.1]} 44. Kf2 {[%clk 0:00:16.1]} 44... e6
{[%clk 0:00:20.7]} 45. Bh2 {[%clk 0:00:13.2]} 45... Bc5+ {[%clk 0:00:20.4]} 46.
Kf1 {[%clk 0:00:12.5]} 46... Rc1+ {[%clk 0:00:19]} 47. Ke2 {[%clk 0:00:12.9]}
47... Kg6 {[%clk 0:00:15.2]} 48. fxg5 {[%clk 0:00:10.8]} 48... hxg5 {[%clk
0:00:16]} 49. Bg3 {[%clk 0:00:08]} 49... Rg1 {[%clk 0:00:14.2]} 50. Kf3 {[%clk
0:00:07.3]} 50... Rf1+ {[%clk 0:00:14.2]} 51. Ke2 {[%clk 0:00:07.7]} 51... Rg1
{[%clk 0:00:13.7]} 52. Kf3 {[%clk 0:00:07.9]} 52... Rf1+ {[%clk 0:00:14.1]} 53.
Ke2 {[%clk 0:00:08.3]} 53... Ra1 {[%clk 0:00:14.8]} 54. Rc7 {[%clk 0:00:08.2]}
54... Ra2+ {[%clk 0:00:14.6]} 55. Kf1 {[%clk 0:00:08.3]} 55... Bd4 {[%clk
0:00:14.1]} 56. Rd7 {[%clk 0:00:08.1]} 56... Be3 {[%clk 0:00:12.3]} 57. Bh2
{[%clk 0:00:06.8]} 57... Rf2+ {[%clk 0:00:08]} 58. Ke1 {[%clk 0:00:04.5]} 58...
Rxg2 {[%clk 0:00:08]} 0-1

[Event "Early-Titled-Tuesday-Blitz-March-26-2024"]
[Site "Chess.com"]
[Date "2024.03.26"]
[Round "3"]
[White "js20000"]
[Black "DrVelja"]
[Result "1-0"]
[WhiteElo "2801"]
[BlackElo "3007"]
[TimeControl "180+1"]
[EndTime "8:29:18 PDT"]
[Termination "js20000 won by resignation"]

1. Nf3 {[%clk 0:03:00.9]} 1... Nf6 {[%clk 0:02:58.7]} 2. d4 {[%clk 0:02:59.7]}
2... g6 {[%clk 0:02:59]} 3. Nbd2 {[%clk 0:02:59.8]} 3... Bg7 {[%clk 0:02:57.4]}
4. e4 {[%clk 0:02:59.3]} 4... d6 {[%clk 0:02:58]} 5. Bd3 {[%clk 0:02:59.4]} 5...
O-O {[%clk 0:02:57.7]} 6. c3 {[%clk 0:03:00]} 6... Nc6 {[%clk 0:02:58.1]} 7. O-O
{[%clk 0:03:00]} 7... e5 {[%clk 0:02:58.9]} 8. Re1 {[%clk 0:02:54.1]} 8... Nh5
{[%clk 0:02:58.4]} 9. Nb3 {[%clk 0:02:33.4]} 9... a5 {[%clk 0:02:53.5]} 10. dxe5
{[%clk 0:02:27.7]} 10... Nxe5 {[%clk 0:02:46.5]} 11. Nxe5 {[%clk 0:02:21.1]}
11... dxe5 {[%clk 0:02:47]} 12. Bc4 {[%clk 0:02:14.4]} 12... Qf6 {[%clk
0:02:27.8]} 13. a4 {[%clk 0:02:09.2]} 13... Rd8 {[%clk 0:02:24.4]} 14. Qe2
{[%clk 0:01:57.5]} 14... Nf4 {[%clk 0:02:19.8]} 15. Bxf4 {[%clk 0:01:51.1]}
15... Qxf4 {[%clk 0:02:20.7]} 16. Rad1 {[%clk 0:01:50.7]} 16... Bg4 {[%clk
0:02:21.5]} 17. f3 {[%clk 0:01:47.3]} 17... Bd7 {[%clk 0:02:21.7]} 18. Nc5
{[%clk 0:01:39.1]} 18... Bc6 {[%clk 0:02:22]} 19. Bb5 {[%clk 0:01:21.8]} 19...
Bf8 {[%clk 0:02:17]} 20. Nd3 {[%clk 0:01:20.1]} 20... Qf6 {[%clk 0:02:17.7]} 21.
Bxc6 {[%clk 0:01:19.3]} 21... Qxc6 {[%clk 0:02:18.6]} 22. Qc2 {[%clk 0:01:15.6]}
22... Qc4 {[%clk 0:01:59.8]} 23. Kh1 {[%clk 0:01:10.2]} 23... f6 {[%clk
0:01:59.8]} 24. b3 {[%clk 0:01:08.2]} 24... Qe6 {[%clk 0:02:00.4]} 25. Nb2
{[%clk 0:01:07.7]} 25... Bc5 {[%clk 0:01:54.9]} 26. Nc4 {[%clk 0:01:07.2]} 26...
b6 {[%clk 0:01:54.3]} 27. Rd3 {[%clk 0:00:57.6]} 27... Rxd3 {[%clk 0:01:38.4]}
28. Qxd3 {[%clk 0:00:57.5]} 28... Be7 {[%clk 0:01:39.3]} 29. Rd1 {[%clk
0:00:42.1]} 29... Rd8 {[%clk 0:01:37.4]} 30. Qe2 {[%clk 0:00:42.5]} 30... Rxd1+
{[%clk 0:01:22.2]} 31. Qxd1 {[%clk 0:00:42.2]} 31... Kf7 {[%clk 0:01:23.1]} 32.
Kg1 {[%clk 0:00:41.6]} 32... Bc5+ {[%clk 0:01:20.9]} 33. Kf1 {[%clk 0:00:41.5]}
33... Ke8 {[%clk 0:01:20.7]} 34. Ke2 {[%clk 0:00:40.5]} 34... Qc6 {[%clk
0:00:49]} 35. Qd3 {[%clk 0:00:37.7]} 35... Qd7 {[%clk 0:00:44.3]} 36. Ne3 {[%clk
0:00:29.3]} 36... Qxd3+ {[%clk 0:00:42.4]} 37. Kxd3 {[%clk 0:00:30.2]} 37... c6
{[%clk 0:00:38.9]} 38. Nc4 {[%clk 0:00:21.6]} 38... Kd7 {[%clk 0:00:39.6]} 39.
Kc2 {[%clk 0:00:20.7]} 39... Kc7 {[%clk 0:00:38.9]} 40. Kd3 {[%clk 0:00:21]}
40... Kb7 {[%clk 0:00:39.3]} 41. Ne3 {[%clk 0:00:19.9]} 41... Be7 {[%clk
0:00:35.1]} 42. Kc4 {[%clk 0:00:19.1]} 42... Ka6 {[%clk 0:00:35.6]} 43. Ng4
{[%clk 0:00:18.8]} 43... b5+ {[%clk 0:00:35.5]} 44. axb5+ {[%clk 0:00:18.6]}
44... cxb5+ {[%clk 0:00:35.8]} 45. Kd5 {[%clk 0:00:18]} 45... Kb6 {[%clk
0:00:35.7]} 46. Ne3 {[%clk 0:00:17.8]} 46... Bc5 {[%clk 0:00:33.4]} 47. Nc2
{[%clk 0:00:17.6]} 47... Bf8 {[%clk 0:00:22]} 48. Ke6 {[%clk 0:00:16.1]} 48...
a4 {[%clk 0:00:13.1]} 49. b4 {[%clk 0:00:15.3]} 49... Bh6 {[%clk 0:00:02.9]} 50.
Kxf6 {[%clk 0:00:15.7]} 50... Bd2 {[%clk 0:00:03.8]} 51. Kxe5 {[%clk 0:00:14.3]}
51... Bxc3+ {[%clk 0:00:04.4]} 52. Kd6 {[%clk 0:00:13.1]} 52... a3 {[%clk
0:00:01.7]} 53. e5 {[%clk 0:00:13.5]} 53... a2 {[%clk 0:00:01.6]} 54. e6 {[%clk
0:00:13.9]} 54... Bf6 {[%clk 0:00:01.5]} 55. e7 {[%clk 0:00:13.8]} 55... Bxe7+
{[%clk 0:00:02.2]} 56. Kxe7 {[%clk 0:00:14.4]} 56... Kc6 {[%clk 0:00:03.1]} 57.
Ke6 {[%clk 0:00:14.9]} 1-0

[Event "Early-Titled-Tuesday-Blitz-March-26-2024"]
[Site "Chess.com"]
[Date "2024.03.26"]
[Round "3"]
[White "AnaKuchava"]
[Black "ninguno46"]
[Result "0-1"]
[WhiteElo "2139"]
[BlackElo "2555"]
[TimeControl "180+1"]
[EndTime "8:29:20 PDT"]
[Termination "ninguno46 won by resignation"]

1. d4 {[%clk 0:03:00.9]} 1... Nf6 {[%clk 0:02:37.7]} 2. Nf3 {[%clk 0:02:59.7]}
2... e6 {[%clk 0:02:37.6]} 3. c4 {[%clk 0:02:59.1]} 3... Bb4+ {[%clk 0:02:37.2]}
4. Bd2 {[%clk 0:02:56.2]} 4... Qe7 {[%clk 0:02:36.8]} 5. e3 {[%clk 0:02:56]}
5... O-O {[%clk 0:02:32.1]} 6. Bd3 {[%clk 0:02:54.3]} 6... b6 {[%clk 0:02:29.4]}
7. O-O {[%clk 0:02:53.2]} 7... Bxd2 {[%clk 0:02:28.9]} 8. Nbxd2 {[%clk
0:02:52.2]} 8... Bb7 {[%clk 0:02:29.2]} 9. Qc2 {[%clk 0:02:52.1]} 9... d6 {[%clk
0:02:27.8]} 10. Ng5 {[%clk 0:02:40.6]} 10... h6 {[%clk 0:02:23.5]} 11. Nge4
{[%clk 0:02:36.2]} 11... Nbd7 {[%clk 0:02:23.8]} 12. b4 {[%clk 0:02:33.9]} 12...
e5 {[%clk 0:02:06.3]} 13. Rfe1 {[%clk 0:02:32.4]} 13... a5 {[%clk 0:02:03.5]}
14. a3 {[%clk 0:02:27.8]} 14... axb4 {[%clk 0:01:35]} 15. axb4 {[%clk
0:02:23.3]} 15... Rxa1 {[%clk 0:01:34.9]} 16. Rxa1 {[%clk 0:02:24.2]} 16... exd4
{[%clk 0:01:34]} 17. Nxf6+ {[%clk 0:02:18]} 17... Nxf6 {[%clk 0:01:32.8]} 18.
exd4 {[%clk 0:02:17.9]} 18... c5 {[%clk 0:01:28.1]} 19. bxc5 {[%clk 0:02:15.8]}
19... bxc5 {[%clk 0:01:27.5]} 20. d5 {[%clk 0:02:15.9]} 20... Bc8 {[%clk
0:01:26.3]} 21. h3 {[%clk 0:02:11.5]} 21... Re8 {[%clk 0:01:25.5]} 22. Nf3
{[%clk 0:01:49.8]} 22... Bd7 {[%clk 0:01:22.3]} 23. Ra7 {[%clk 0:01:42]} 23...
Qd8 {[%clk 0:01:21.8]} 24. Qa2 {[%clk 0:01:32]} 24... Qb8 {[%clk 0:01:17.3]} 25.
Qa6 {[%clk 0:01:19.2]} 25... Bc8 {[%clk 0:01:10.9]} 26. Qa5 {[%clk 0:01:02.5]}
26... Qb3 {[%clk 0:01:08.1]} 27. Qa3 {[%clk 0:00:54.4]} 27... Qd1+ {[%clk
0:01:04.7]} 28. Kh2 {[%clk 0:00:54.1]} 28... Bd7 {[%clk 0:00:59.2]} 29. Ra8
{[%clk 0:00:45.8]} 29... g6 {[%clk 0:00:55.6]} 30. Rxe8+ {[%clk 0:00:42.8]}
30... Bxe8 {[%clk 0:00:54.7]} 31. Qc3 {[%clk 0:00:39.2]} 31... Nh5 {[%clk
0:00:52]} 32. Qd2 {[%clk 0:00:27.5]} 32... Qxd2 {[%clk 0:00:48.6]} 33. Nxd2
{[%clk 0:00:28.4]} 33... f5 {[%clk 0:00:45.1]} 34. g3 {[%clk 0:00:23.2]} 34...
Kf8 {[%clk 0:00:44.2]} 35. f4 {[%clk 0:00:22.8]} 35... Ke7 {[%clk 0:00:43.4]}
36. Kg2 {[%clk 0:00:22.5]} 36... Nf6 {[%clk 0:00:43.5]} 37. Kf3 {[%clk
0:00:22.3]} 37... Ba4 {[%clk 0:00:42.4]} 38. Ke3 {[%clk 0:00:13.6]} 38... Nh5
{[%clk 0:00:39.4]} 39. g4 {[%clk 0:00:13.4]} 39... Ng7 {[%clk 0:00:38.8]} 40.
Nf3 {[%clk 0:00:11.6]} 40... Bd7 {[%clk 0:00:37.8]} 41. Nh4 {[%clk 0:00:07.7]}
41... Kf6 {[%clk 0:00:36.9]} 42. Kf3 {[%clk 0:00:07.1]} 42... Bc8 {[%clk
0:00:34.2]} 43. Bc2 {[%clk 0:00:06.7]} 43... fxg4+ {[%clk 0:00:31]} 44. hxg4
{[%clk 0:00:07.6]} 44... g5 {[%clk 0:00:31.1]} 45. fxg5+ {[%clk 0:00:06.8]}
45... Kxg5 {[%clk 0:00:29.9]} 46. Ng2 {[%clk 0:00:06.1]} 46... Bxg4+ {[%clk
0:00:29.2]} 47. Kg3 {[%clk 0:00:05.8]} 47... Bf5 {[%clk 0:00:29.1]} 48. Bxf5
{[%clk 0:00:04.2]} 48... Nxf5+ {[%clk 0:00:28.6]} 49. Kf3 {[%clk 0:00:04]} 49...
Nh4+ {[%clk 0:00:28.5]} 50. Nxh4 {[%clk 0:00:04.2]} 50... Kxh4 {[%clk
0:00:28.7]} 51. Kf4 {[%clk 0:00:04.9]} 51... h5 {[%clk 0:00:28.3]} 52. Kf5
{[%clk 0:00:02.8]} 52... Kg3 {[%clk 0:00:27.9]} 53. Ke6 {[%clk 0:00:03.7]} 53...
h4 {[%clk 0:00:28.2]} 54. Kxd6 {[%clk 0:00:04.6]} 54... h3 {[%clk 0:00:28.8]}
55. Kxc5 {[%clk 0:00:04.5]} 55... h2 {[%clk 0:00:29.7]} 56. d6 {[%clk
0:00:05.1]} 56... h1=Q {[%clk 0:00:30.6]} 57. d7 {[%clk 0:00:05.9]} 57... Qh8
{[%clk 0:00:29.3]} 58. Kc6 {[%clk 0:00:05.9]} 58... Qd8 {[%clk 0:00:28.8]} 59.
c5 {[%clk 0:00:06.4]} 59... Kf4 {[%clk 0:00:28.1]} 60. Kd6 {[%clk 0:00:06.6]}
60... Kf5 {[%clk 0:00:23.6]} 61. c6 {[%clk 0:00:06.5]} 61... Kf6 {[%clk
0:00:22.9]} 62. c7 {[%clk 0:00:05.3]} 62... Qe7+ {[%clk 0:00:22.9]} 63. Kc6
{[%clk 0:00:06]} 63... Qe6+ {[%clk 0:00:22]} 64. Kc5 {[%clk 0:00:04.7]} 64...
Qxd7 {[%clk 0:00:21.6]} 65. Kb6 {[%clk 0:00:04.5]} 65... Qc8 {[%clk 0:00:21.6]}
66. Kc6 {[%clk 0:00:04.3]} 66... Ke6 {[%clk 0:00:21.9]} 67. Kb6 {[%clk
0:00:02.8]} 67... Kd6 {[%clk 0:00:21.8]} 0-1

[Event "Early-Titled-Tuesday-Blitz-March-26-2024"]
[Site "Chess.com"]
[Date "2024.03.26"]
[Round "3"]
[White "Lucky_Puncher"]
[Black "nekotyanof"]
[Result "0-1"]
[WhiteElo "2474"]
[BlackElo "2694"]
[TimeControl "180+1"]
[EndTime "8:29:30 PDT"]
[Termination "nekotyanof won by resignation"]

1. d4 {[%clk 0:03:00.9]} 1... Nf6 {[%clk 0:03:00.2]} 2. c4 {[%clk 0:02:57.2]}
2... g6 {[%clk 0:03:00.4]} 3. Nc3 {[%clk 0:02:55.6]} 3... d5 {[%clk 0:03:00.8]}
4. Nf3 {[%clk 0:02:55.6]} 4... Bg7 {[%clk 0:03:00.8]} 5. h4 {[%clk 0:02:55.9]}
5... c5 {[%clk 0:02:57.3]} 6. dxc5 {[%clk 0:02:53.6]} 6... Qa5 {[%clk
0:02:57.1]} 7. cxd5 {[%clk 0:02:54]} 7... Ne4 {[%clk 0:02:49.5]} 8. Qa4+ {[%clk
0:02:51.6]} 8... Qxa4 {[%clk 0:02:49]} 9. Nxa4 {[%clk 0:02:52.5]} 9... Bd7
{[%clk 0:02:49.5]} 10. Ng5 {[%clk 0:02:01.7]} 10... Nxg5 {[%clk 0:02:37.6]} 11.
c6 {[%clk 0:02:01.4]} 11... bxc6 {[%clk 0:02:34.5]} 12. hxg5 {[%clk 0:01:58.7]}
12... cxd5 {[%clk 0:02:34.6]} 13. Nc5 {[%clk 0:01:57.6]} 13... Nc6 {[%clk
0:02:04.7]} 14. e3 {[%clk 0:01:52.1]} 14... Rb8 {[%clk 0:02:02.6]} 15. Nxd7
{[%clk 0:01:38.6]} 15... Kxd7 {[%clk 0:02:02.5]} 16. Rb1 {[%clk 0:01:39]} 16...
Rhc8 {[%clk 0:01:59.8]} 17. Rxh7 {[%clk 0:01:38.5]} 17... Bc3+ {[%clk
0:01:37.9]} 18. Ke2 {[%clk 0:01:33.3]} 18... Ne5 {[%clk 0:01:32.3]} 19. f4
{[%clk 0:01:26.6]} 19... Nc4 {[%clk 0:01:29]} 20. b3 {[%clk 0:01:22.8]} 20...
Nd6 {[%clk 0:01:28.8]} 21. Kf3 {[%clk 0:01:13.5]} 21... Rh8 {[%clk 0:01:13.2]}
22. Rxh8 {[%clk 0:01:11.5]} 22... Rxh8 {[%clk 0:01:14.1]} 23. Ba3 {[%clk
0:01:09.8]} 23... Ne4 {[%clk 0:01:10.4]} 24. Rc1 {[%clk 0:01:05.1]} 24... Nd2+
{[%clk 0:00:44.5]} 25. Kf2 {[%clk 0:00:54.2]} 25... Ne4+ {[%clk 0:00:44.8]} 26.
Kf3 {[%clk 0:00:53]} 26... Nd2+ {[%clk 0:00:44.7]} 27. Kg4 {[%clk 0:00:50.2]}
27... Nxf1 {[%clk 0:00:43.9]} 28. Rxc3 {[%clk 0:00:46.2]} 28... f5+ {[%clk
0:00:35.2]} 29. gxf6 {[%clk 0:00:44.1]} 29... exf6 {[%clk 0:00:36.1]} 30. Bc1
{[%clk 0:00:42.2]} 30... Rh1 {[%clk 0:00:30.8]} 31. Kf3 {[%clk 0:00:36]} 31...
Ke6 {[%clk 0:00:28.5]} 32. Rc6+ {[%clk 0:00:35.2]} 32... Kf7 {[%clk 0:00:28.3]}
33. Rc7+ {[%clk 0:00:35]} 33... Ke6 {[%clk 0:00:28.8]} 34. Ba3 {[%clk
0:00:32.5]} 34... Nd2+ {[%clk 0:00:27.5]} 35. Ke2 {[%clk 0:00:32.5]} 35... Ne4
{[%clk 0:00:26.9]} 36. g4 {[%clk 0:00:31.5]} 36... Rh2+ {[%clk 0:00:25.8]} 37.
Kf1 {[%clk 0:00:28.5]} 37... d4 {[%clk 0:00:21.1]} 38. exd4 {[%clk 0:00:24.4]}
38... Nd2+ {[%clk 0:00:21.3]} 39. Ke1 {[%clk 0:00:22.9]} 39... Nf3+ {[%clk
0:00:22.2]} 40. Kf1 {[%clk 0:00:21.5]} 40... Rxa2 {[%clk 0:00:22.1]} 41. Rxa7
{[%clk 0:00:19.9]} 41... Nxd4 {[%clk 0:00:18.8]} 42. Bc5 {[%clk 0:00:14.7]}
42... Rxa7 {[%clk 0:00:14.9]} 43. Bxa7 {[%clk 0:00:15.6]} 43... Nxb3 {[%clk
0:00:15.8]} 44. Be3 {[%clk 0:00:15.5]} 44... Kd5 {[%clk 0:00:16.2]} 45. f5
{[%clk 0:00:11.2]} 45... g5 {[%clk 0:00:16.4]} 46. Kf2 {[%clk 0:00:11.2]} 46...
Ke4 {[%clk 0:00:14.2]} 47. Bb6 {[%clk 0:00:05.1]} 47... Kf4 {[%clk 0:00:12.4]}
48. Bd8 {[%clk 0:00:05.4]} 48... Nc5 {[%clk 0:00:13]} 49. Kg2 {[%clk 0:00:03.3]}
49... Ne4 {[%clk 0:00:11]} 50. Kh3 {[%clk 0:00:03.6]} 50... Nf2+ {[%clk
0:00:11.4]} 51. Kg2 {[%clk 0:00:04.1]} 51... Nxg4 {[%clk 0:00:12.3]} 52. Bc7+
{[%clk 0:00:03]} 52... Kxf5 {[%clk 0:00:12.7]} 53. Kg3 {[%clk 0:00:03.7]} 53...
Ne5 {[%clk 0:00:13.3]} 54. Bb8 {[%clk 0:00:03.5]} 54... Nf7 {[%clk 0:00:13.8]}
55. Bc7 {[%clk 0:00:03.5]} 55... Nh8 {[%clk 0:00:14.4]} 56. Kf3 {[%clk
0:00:03.8]} 56... Ng6 {[%clk 0:00:15.3]} 57. Kg3 {[%clk 0:00:04.7]} 57... Ne5
{[%clk 0:00:15.8]} 58. Bb8 {[%clk 0:00:04.9]} 58... Ke4 {[%clk 0:00:15.8]} 59.
Bc7 {[%clk 0:00:05.8]} 59... f5 {[%clk 0:00:16.3]} 60. Kf2 {[%clk 0:00:06]}
60... f4 {[%clk 0:00:16.4]} 61. Bb8 {[%clk 0:00:05.6]} 61... g4 {[%clk 0:00:17]}
62. Kg2 {[%clk 0:00:06]} 62... Nd3 {[%clk 0:00:14.4]} 63. Ba7 {[%clk 0:00:06.3]}
63... Nb4 {[%clk 0:00:13.8]} 64. Bc5 {[%clk 0:00:06.2]} 64... Nd5 {[%clk
0:00:14.7]} 65. Ba7 {[%clk 0:00:06.4]} 65... Ne3+ {[%clk 0:00:15.5]} 66. Kf2
{[%clk 0:00:06.6]} 66... g3+ {[%clk 0:00:16.1]} 67. Ke2 {[%clk 0:00:06.2]} 67...
f3+ {[%clk 0:00:16.5]} 68. Ke1 {[%clk 0:00:06.8]} 68... f2+ {[%clk 0:00:16.9]}
0-1